Cogmind - Beta 12 @@@ ROGUE MODE // 2023.04.09 @ 15:29:26 Player: ZLD1 Result: Self-destructed Performance ------------- Evolutions (2) 1000 Regions Visited (5) 1000 Robots Destroyed (19) 95 Value Destroyed (337) 337 Prototype IDs (25) 500 Alien Tech Used (0) 0 Bonus (321) 321 TOTAL SCORE: 3253 Bonus ------- Follower Combat Kills 21 Aligned with FarCom 300 Cogmind --------- Core Integrity 103/550 Matter 282/300 Energy 57/100 System Corruption 0% Temperature Cool (39) Movement Core (200) Ox3 Location -8/Materials Parts ------- > --- POWER (1) -------- (None) > --- PROPULSION (4) --- (None) > --- UTILITY (4) ------ Medium Storage Unit Signal Interpreter > --- WEAPON (2) ------- (None) > --- INVENTORY (10) --- Ion Engine Medium Storage Unit Trap Scanner Skeleton Box EM Pulse Cannon Datajack Katana Peak State ------------ > --- POWER ------------ Light Angular Momentum Engine > --- PROPULSION ------- Aluminum Leg Aluminum Leg Carbon-fiber Leg Makeshift Leg > --- UTILITY ---------- Medium Storage Unit Signal Interpreter Seismic Detector Improved Utility Shielding > --- WEAPON ----------- Assault Rifle Light Assault Rifle > --- INVENTORY -------- Ion Engine Medium Storage Unit Experimental Sensor Array Skeleton Box EM Pulse Cannon Datajack [Rating: 24] Favorites ----------- Power Ion Engine Engine Ion Engine Power Core Light Nuclear Core Propulsion Aluminum Leg Leg Aluminum Leg Utility Signal Interpreter Device Seismic Detector Storage Medium Storage Unit Processor Signal Interpreter Protection Improved Utility Shielding Weapon Assault Rifle Energy Gun Heavy EM Shotgun Ballistic Gun Assault Rifle Ballistic Cannon Light Cannon Build | -11 -10 -10 -10 -9 -8 ------- Run | Jun Mat Min Exi Min Mat Slots Evolved 4 | . . . . . 4 Power . | . . . . . . Propulsion 2 | . . . . . 2 Utility 2 | . . . . . 2 Weapon . | . . . . . . Parts Attached 23 | 6 1 2 1 4 9 Power 3 | 1 . . . 1 1 Engine 2 | 1 . . . 1 . Core 1 | . . . . . 1 Reactor . | . . . . . . Propulsion 6 | 2 . . . 2 2 Treads . | . . . . . . Leg 6 | 2 . . . 2 2 Wheel . | . . . . . . Hover . | . . . . . . Flight . | . . . . . . Utility 8 | 1 1 2 1 . 3 Device 3 | . . 1 . . 2 Storage 3 | 1 . 1 1 . . Processor 1 | . 1 . . . . Hackware . | . . . . . . Protection 1 | . . . . . 1 Artifact . | . . . . . . Weapon 6 | 2 . . . 1 3 Energy Gun 1 | . . . . . 1 Energy Cannon . | . . . . . . Ballistic Gun 3 | 2 . . . 1 . Ballistic Cannon 2 | . . . . . 2 Launcher . | . . . . . . Special Weapon . | . . . . . . Impact Weapon . | . . . . . . Slashing Weapon . | . . . . . . Piercing Weapon . | . . . . . . Special Melee Weapon . | . . . . . . Unidentified Prototypes 2 | . . . . . 2 Parts Lost 15 | . . . . 1 14 Power 2 | . . . . . 2 Propulsion 4 | . . . . . 4 Utility 3 | . . . . . 3 Weapon 6 | . . . . 1 5 Highest Loss Streak 10 | . . . . 1 10 To Critical Strikes . | . . . . . . Average Slot Usage (%) 93 | . 86 100 100 99 83 Engine 10 | . 14 14 14 14 3 Leg 26 | . 28 28 28 28 24 Device 2 | . . 1 . . 8 Storage 12 | . 14 13 14 14 9 Processor 11 | . 1 14 14 14 9 Protection 2 | . . . . . 8 Ballistic Gun 24 | . 28 28 28 27 16 Naked Turns . | . . . . . . Heaviest Build 25 | 14 14 14 19 23 25 Greatest Support 55 | 20 20 20 20 25 55 Greatest Overweight (x) 6 | 3 . . . . 6 Average Overweight (x) . | . . . . . . Largest Inventory Capacity 10 | 8 8 8 10 10 10 Average Capacity 9 | 7 8 7 8 10 10 Most Carried 10 | 5 5 7 8 10 10 Average Carried 7 | 2 3 4 6 9 9 Final Capacity 10 | 8 8 8 10 10 10 Final Carried 10 | 3 4 7 8 10 7 Class Distribution -------------------- 65% | Mutant 34% | Scavenger-Mutant Dominant Class ---------------- Mutant | -10/Materials Mutant | -10/Mines Mutant | -10/Exiles Mutant | -9/Mines Scavenger-Mutant | -8/Materials Resources | -11 -10 -10 -10 -9 -8 ----------- Run | Jun Mat Min Exi Min Mat Matter Collected 673 | 208 66 . . 278 121 Remotely . | . . . . . . Salvage Created 525 | 65 139 . . 183 138 Parts 33 | 9 9 . . 10 5 Haulers Intercepted . | . . . . . . Recyclers Shooed 1 | 1 . . . . . Parts Field Recycled . | . . . . . . Retrieved Matter . | . . . . . . Parts Self-Destructed . | . . . . . . Prevented . | . . . . . . Kills | -11 -10 -10 -10 -9 -8 ------- Run | Jun Mat Min Exi Min Mat Combat Hostiles Destroyed 13 | . 5 . . 7 1 Guns 13 | . 5 . . 7 1 Classes Destroyed 7 | 1 2 . . 1 3 Worker 1 | . . . . 1 . Tunneler 3 | 3 . . . . . Recycler 1 | . . . . . 1 Watcher 1 | . . . . . 1 Swarmer 8 | . 3 . . 5 . Grunt 4 | . 2 . . 2 . Hunter 1 | . . . . . 1 Best Kill Streak 3 | 2 3 . . 3 2 Combat Bots Only 3 | . 3 . . 3 1 Max Kills in Single Turn 2 | 1 1 . . 2 1 Gunslinging 1 | . . . . 1 . Exploded . | . . . . . . Melee . | . . . . . . Uniques/NPCs Destroyed . | . . . . . . Combat | -11 -10 -10 -10 -9 -8 -------- Run | Jun Mat Min Exi Min Mat Damage Taken 1804 | . 124 22 . 192 1466 Core 464 | . 7 . . 10 447 Absorbed by Shields . | . . . . . . Redirected to Shielding 97 | . . . . . 97 Core Remaining (%) 96 | 100 . . . 93 . Volleys Fired 67 | 13 12 . . 13 29 Largest 2 | 2 2 . . 2 2 Hottest 55 | 40 40 . . 40 55 Shots Fired 123 | 26 24 . . 23 50 Gun 116 | 26 24 . . 23 43 Cannon 7 | . . . . . 7 Launcher . | . . . . . . Special . | . . . . . . Kinetic 121 | 26 24 . . 23 48 Thermal . | . . . . . . Explosive . | . . . . . . Electromagnetic 2 | . . . . . 2 Robot Hit Streak 16 | 5 6 . . 10 16 Robot Miss Streak 5 | 5 1 . . 1 5 Penetration Max . | . . . . . . Secondary Targets 2 | . 1 . . 1 . Max Gunslinging Chain 1 | . 1 . . 1 . Shots Hit Robots 84 | 14 17 . . 20 33 Core Hits 38 | 4 7 . . 11 16 Critical Kills . | . . . . . . Critical Parts Destroyed 1 | . . . . 1 . Critical Strikes 2 | . . . . 1 1 Destroy 1 | . . . . 1 . Blast 1 | . . . . . 1 Melee Attacks . | . . . . . . Impact . | . . . . . . Slashing . | . . . . . . Piercing . | . . . . . . Sneak Attacks . | . . . . . . Combat Hostiles . | . . . . . . Follow-up Attacks . | . . . . . . Damage Inflicted 1089 | 174 207 . . 286 422 Guns 954 | 174 207 . . 284 289 Cannons 119 | . . . . . 119 Explosions . | . . . . . . Melee . | . . . . . . Ramming 16 | . . . . 2 14 Kinetic 1018 | 174 207 . . 284 353 Thermal . | . . . . . . Explosive . | . . . . . . Electromagnetic 55 | . . . . . 55 Impact . | . . . . . . Slashing . | . . . . . . Piercing . | . . . . . . Highest Corruption . | . . . . . . Average Corruption . | . . . . . . Corruption Purged . | . . . . . . Corruption Blocked . | . . . . . . Overload Shots . | . . . . . . Overflow Damage . | . . . . . . Projectiles . | . . . . . . Explosions . | . . . . . . Melee . | . . . . . . Knockbacks 3 | . . . . . 3 Impact . | . . . . . . Kinetic 3 | . . . . . 3 Secondary . | . . . . . . Self-Inflicted Damage . | . . . . . . Shots . | . . . . . . Rammed . | . . . . . . Targets Rammed 2 | . . . . 1 1 Kicked 2 | . . . . 1 1 Crushed . | . . . . . . Highest Temperature 42 | . . . . 22 42 Average Temperature 15 | . . . . 12 22 Received Heat Transfer 471 | . 36 . . 108 327 Siege Activations . | . . . . . . Robots Corrupted . | . . . . . . Combat Hostiles . | . . . . . . Parts Fried . | . . . . . . Impact Corruptions . | . . . . . . Robots Melted . | . . . . . . Combat Hostiles . | . . . . . . Parts Melted . | . . . . . . Heat Transferred . | . . . . . . Parts Sabotaged . | . . . . . . Parts Stolen . | . . . . . . Parts Stripped . | . . . . . . Power Chain Reactions . | . . . . . . Missiles Intercepted . | . . . . . . Alert | -11 -10 -10 -10 -9 -8 ------- Run | Jun Mat Min Exi Min Mat Peak Influence 160 | 15 160 62 . 155 72 Initial 62 | . 9 62 . . . Average 44 | 7 99 62 . 54 22 Maximum Alert Level . | . . . . . . Low Security (%) 100 | 100 100 100 . 100 100 Level 1 . | . . . . . . Level 2 . | . . . . . . Level 3 . | . . . . . . Level 4 . | . . . . . . Level 5 . | . . . . . . High Security . | . . . . . . Max Security . | . . . . . . Squads Dispatched 1 | . 1 . . . . Investigation . | . . . . . . Extermination . | . . . . . . Reinforcement 1 | . 1 . . . . Assault . | . . . . . . Garrison . | . . . . . . Intercept . | . . . . . . Searches Triggered . | . . . . . . Construction Impeded . | . . . . . . Haulers Reinforced . | . . . . . . Active Scanning Responses . | . . . . . . Cargo Convoy Interrupts . | . . . . . . Stealth | -11 -10 -10 -10 -9 -8 --------- Run | Jun Mat Min Exi Min Mat Distress Signals 3 | . . . . . 3 Communications Jammed . | . . . . . . Distress Signals . | . . . . . . Times Spotted 39 | . 8 . . 10 21 Peak Tracking Total 9 | . 3 . . 4 9 Tactical Retreats 4 | . 1 . . 1 2 Traps | -11 -10 -10 -10 -9 -8 ------- Run | Jun Mat Min Exi Min Mat Traps Triggered 1 | . . 1 . . . Indirectly . | . . . . . . Trap Hack Attempts . | . . . . . . Triggered . | . . . . . . Disarmed . | . . . . . . Reprogrammed . | . . . . . . Reused . | . . . . . . Traps Extracted . | . . . . . . Installed . | . . . . . . Triggered . | . . . . . . Machines | -11 -10 -10 -10 -9 -8 ---------- Run | Jun Mat Min Exi Min Mat Machines Disabled . | . . . . . . Max in Single Turn . | . . . . . . Machines Repaired . | . . . . . . Machines Sabotaged . | . . . . . . Overloaded Fab Kills . | . . . . . . Hacking | -11 -10 -10 -10 -9 -8 --------- Run | Jun Mat Min Exi Min Mat Machines Accessed 2 | . . 1 1 . . Terminals . | . . . . . . Fabricators . | . . . . . . Repair Stations . | . . . . . . Recycling Units . | . . . . . . Scanalyzers . | . . . . . . Garrison Access . | . . . . . . Total Hacks 2 | . . 1 1 . . Successful 2 | . . 1 1 . . Failed . | . . . . . . Catastrophic . | . . . . . . Database Lockouts . | . . . . . . Manual 1 | . . . 1 . . Terminals . | . . . . . . Fabricators . | . . . . . . Repair Stations . | . . . . . . Recycling Units . | . . . . . . Scanalyzers . | . . . . . . Garrison Access . | . . . . . . Terminal Hacks 2 | . . 1 1 . . Open Door 1 | . . 1 . . . EX-Prototype ID Bank 1 | . . . 1 . . Fabricator Hacks . | . . . . . . Repair Station Hacks . | . . . . . . Recycling Unit Hacks . | . . . . . . Scanalyzer . | . . . . . . Garrison Access Hacks . | . . . . . . Unauthorized Hacks . | . . . . . . Terminals . | . . . . . . Fabricators . | . . . . . . Repair Stations . | . . . . . . Recycling Units . | . . . . . . Scanalyzers . | . . . . . . Garrison Access . | . . . . . . Data Cores Recovered . | . . . . . . Used . | . . . . . . Hacking Detections . | . . . . . . Full Trace Events . | . . . . . . Feedback Events . | . . . . . . Feedback Blocked . | . . . . . . Robot Schematics Acquired . | . . . . . . Robots Built . | . . . . . . Authchips . | . . . . . . Time . | . . . . . . Total Robot Build Rating . | . . . . . . Part Schematics Acquired . | . . . . . . Parts Built . | . . . . . . Authchips . | . . . . . . Time . | . . . . . . Total Part Build Rating . | . . . . . . Parts Repaired . | . . . . . . Time . | . . . . . . Parts Recycled . | . . . . . . Recycled Matter . | . . . . . . Retrieved Matter . | . . . . . . Retrieved Components . | . . . . . . Parts Scanalyzed . | . . . . . . Part Schematics Acquired . | . . . . . . Parts Damaged . | . . . . . . Bothacking | -11 -10 -10 -10 -9 -8 ------------ Run | Jun Mat Min Exi Min Mat Used RIF Installer . | . . . . . . Robots Hacked . | . . . . . . Non-combat . | . . . . . . Combat . | . . . . . . Robot Hacks Applied . | . . . . . . Relay Couplers Released . | . . . . . . Fabnet Peak Effective % . | . . . . . . Robots Rewired . | . . . . . . Allies Hacked . | . . . . . . Hacks Repelled . | . . . . . . Allies | -11 -10 -10 -10 -9 -8 -------- Run | Jun Mat Min Exi Min Mat Total Allies 2 | . . . . 2 . Largest Group 2 | . . . . 2 . Highest-Rated Group 49 | . . . . 49 . Highest-Rated Ally 31 | . . . . 31 . Total Orders . | . . . . . . Ally Attacks 10 | . . . . 10 . Total Damage 149 | . . . . 149 . Kills 3 | . . . . 3 . Allies Corrupted . | . . . . . . Allies Melted . | . . . . . . Intel | -11 -10 -10 -10 -9 -8 ------- Run | Jun Mat Min Exi Min Mat Robot Analysis Total . | . . . . . . Derelict Logs Recovered 1 | . . . . 1 . Drone Launches . | . . . . . . Drone Recoveries . | . . . . . . Exploration | -11 -10 -10 -10 -9 -8 ------------- Run | Jun Mat Min Exi Min Mat Turns Passed 2273 | 212 192 142 280 804 643 Spaces Moved 1591 | 144 126 114 229 617 361 Core 37 | 27 . . . . 10 Treads . | . . . . . . Legs 1554 | 117 126 114 229 617 351 Wheels . | . . . . . . Hover . | . . . . . . Flight . | . . . . . . Fastest Speed 50 | 50 120 120 120 120 120 Average Speed 123 | 110 120 120 120 120 137 Slowest Speed 350 | 200 120 120 120 120 350 Overloaded Moves . | . . . . . . Propulsion Burnouts . | . . . . . . Robots Hopped . | . . . . . . Cave-ins Triggered . | . . . . . . Exploration Rate (%) 37 | 6 20 27 60 98 16 Regions Visited 5 Branch Regions 3 Pre-discovered Areas . | . . . . . . Known Exits Taken 4 | . 1 1 1 1 . Unknown Exits Taken 1 | 1 . . . . . Scrap Searched 3 | . . . . 3 . Spaces Dug . | . . . . . . Terrain Destroyed . | . . . . . . Melee . | . . . . . . Projectile . | . . . . . . AOE . | . . . . . . Terrain Rammed . | . . . . . . Walls Destroyed . | . . . . . . Machines Disabled . | . . . . . . Actions | -11 -10 -10 -10 -9 -8 --------- Run | Jun Mat Min Exi Min Mat Total 1784 | 169 143 118 234 658 462 Wait 71 | . 3 . . 14 54 Move 1586 | 143 125 113 228 616 361 Hop . | . . . . . . Pick Up 27 | 7 2 3 3 6 6 Fast Attach 2 | 2 . . . . . Attach 16 | 4 1 . . 1 10 Detach 1 | . . . . . 1 Swap 6 | . . 2 1 3 . Drop 6 | . . . 2 4 . Fire 67 | 13 12 . . 13 29 Melee . | . . . . . . Ram . | . . . . . . Kick 2 | . . . . 1 1 Crush . | . . . . . . Escape Stasis . | . . . . . . Rewire . | . . . . . . Trap . | . . . . . . Miscellaneous . | . . . . . . Route ------- -11/Junkyard -10/Materials -10/Mines -10/Exiles -9/Mines (discovered 2 exits: *Mat x2) -8/Materials History --------- Turn | Location | Event 3 | -11/Junkyard | Discovered new exit (range 15) 213 | -11/Junkyard | Entered Materials 309 | -10/Materials | Build established: Mutant 361 | -10/Materials | Discovered new exit (range 6) 404 | -10/Materials | Identified exit to Mines 405 | -10/Materials | Entered Mines 495 | -10/Mines | Met a Derelict who couldn't figure out how to use a Trap Extractor 535 | -10/Mines | YI-UF0 nonchalantly dropped a Grenade Launcher on the ground 542 | -10/Mines | Deemed a non-threat by the Exiles lab entrance 542 | -10/Mines | Discovered new exit (range 5) 546 | -10/Mines | Identified exit to Exiles 547 | -10/Mines | Entered Exiles 580 | -10/Exiles | Met 8R-AWN 597 | -10/Exiles | Met EX-HEX 631 | -10/Exiles | Met EX-BIN 648 | -10/Exiles | Aligned with FarCom system 649 | -10/Exiles | Given EX-Vault access code 676 | -10/Exiles | Opened EX-Vault 685 | -10/Exiles | Found Skeleton Box 711 | -10/Exiles | Warned to stay clear of 0b10 Research branches 743 | -10/Exiles | Met EX-DEC 817 | -10/Exiles | Discovered new exit (range 10) 825 | -10/Exiles | Identified exit to Mines 827 | -10/Exiles | Left Exiles lab with Skeleton Box 827 | -10/Exiles | Entered Mines 1114 | -9/Mines | Discovered new exit (range 4) 1118 | -9/Mines | Identified exit to Materials 1128 | -9/Mines | Discovered exit to Materials (range 13) 1149 | -9/Mines | Learned Materials stockpile data 1565 | -9/Mines | Found a damaged Exp. Sensor Array with a note attached 1568 | -9/Mines | Found Prototype Device 1631 | -9/Mines | Entered Materials 1631 | -8/Materials | Evolved 4 slots: Propulsion x2, Utility x2 1646 | -8/Materials | Identified Exp. Sensor Array 1726 | -8/Materials | Build established: Scavenger-Mutant 1954 | -8/Materials | Lost 3 parts (1p2n) 2264 | -8/Materials | Core integrity fell below 50% 2274 | -8/Materials | Core integrity fell below 20% 2274 | -8/Materials | Self-destructed Last Messages --------------- 02261_ U-05 Engineer lays Concrete. 02262_ K-01 Serf collects debris. 02263_ U-05 Engineer lays Concrete. 02263_ Seismic Detector destroyed. 02264_ U-05 Engineer lays Concrete. 02265_ K-01 Serf collects debris. 02266_ Acquired 76 matter. 02267_ Lgt. Cannon destroyed. 02267_ U-05 Engineer lays Concrete. 02269_ Identified Hvy. EM Shotgun. 02269_ U-05 Engineer lays Concrete. 02269_ K-01 Serf collects debris. 02270_ U-05 Engineer lays Concrete. 02270_ Imp. Utility Shielding destroyed. 02271_ U-05 Engineer lays Concrete. 02271_ Critical hit (Burn: +37). 02273_ U-05 Engineer builds a Wall. 02273_ K-01 Serf collects debris. 02273_ M-13 Machinist fits Backup Propulsion I on K-01 Serf. 02273_ Hvy. EM Shotgun destroyed. Map ----- +----------------------------------------------------+ | | | | | | | | | | | | | | | | | | | | | ?????????????????????????????????????????????????? | | ????????????##########?????##????????????????????? | | ????????????# #???? !##??????????########?? | | ????????????# #???? !#??????????# #?? | | ????????????# ##### !#??????????# """ #?? | | ????????????# """ # !#??????????# """ #?? | | ????????????# """ ! # !#??????????# """ #?? | | ????????????#! """ # !##??????????# #?? | | ????????????# """ + ####???????????# #?? | | ????????????# """ # ###################+##### | | ????????????# # + | | ?###+##?????########## k # | | ## ############## m # | | % # | | T * !%! + | | %=%! !=@=g # | | ## ###+########; [%*=;#;####### ###/#### | | ?## ??# #?# ; % % #?# # ## | | ???????#/ """#?# ; ; #?# # #### | | ???????#// """#?##; ; g #?# # #??? | | ???????# R"#??## g ; ### # #??? | | ???????# """#?# ;u s ; + # """ #??? | | ???????#/ #?##; sg ; ### # """ #??? | | ???????########??#; ; #?# # """ #??? | | ?????????????????## # #?# # #??? | | ??????????????????# # #?# # """ #??? | | ??????????????????#####+##### #?# # """ #??? | | ??????????????????????? #???# #?# # "?? #??? | | ??????????????????????? #???# #?# # ?? #??? | | ??????????????????????? #???#######?# ###??##??? | | ??????????????????????? ???????????? #???????? | | ??????????????????????? ???????????? #???????? | | ??????????????????????? ??????????? ! T ??????? | | ?????????????????!????? ??????????? ###?????? | | ??????????????????????????????????## #???????? | | ???????????????????????????????????###/###???????? | | ?????????????????????????????????????? ?????????? | | ?????????????????????????????????????? "?????????? | | ?????????????????????????????????????? "?????????? | | ?????????????????????????????????????? "?????????? | +----------------------------------------------------+ Best States ------------- Heat Dissipation 31 Energy Generation 18 Energy Capacity 250 Matter Stores 300 Matter Capacity 300 Sight Range 16 Terrain Scan Density 10 Utility Shielding 66 Evasion (%) 55 Trap Extractor Capacity 6 Item Schematics ----------------- None Robot Schematics ------------------ None Fabricated ------------ Nothing Alien Tech Used ----------------- None Achievements -------------- None Challenges ------------ None Game ------ Seed ColdDeepSource Manual? 0 Play Time 00:17:44 Cumulative 27.6 hours Start 2023.04.09 @ 15:11:06 End 2023.04.09 @ 15:29:26 Sessions 1 Manual Loads 0 Difficulty Rogue Special Mode None Game No. 63 Rogue 63 Adventurer 0 Explorer 0 Win Type - Total 0 Types 0/0/0/0/0/0/0/0/0 Lore% 24 Gallery% 32 Achievement% 26 Wizard Run 0 Options --------- ASCII 0 Keyboard 0 Movement Mouse Keybinds 0 Fullscreen 1 Font 24/Smallcaps Map View 64x52 Tactical HUD 1 Map Filters NONE Filters NONE Steam 1 RUN: 7cf94a5d-8fdf-4795-ad87-e2b3e602872a